Cogmind - Beta 15 @@@ ROGUE MODE // 2025.07.05 @ 16:17:41 Player: Raix Result: Destroyed by L-31 Rogue with Katana Performance ------------- Evolutions (1) 500 Regions Visited (2) 400 Robots Destroyed (16) 80 Value Destroyed (313) 313 Prototype IDs (0) 0 Alien Tech Used (0) 0 Bonus (0) 0 TOTAL SCORE: 1293 Bonus ------- None Cogmind --------- Core Integrity 0/400 Matter 293/300 Energy 100/100 System Corruption 2% Temperature Cool (0) Movement Core (450) Ox8 Location -9/Materials Parts ------- > --- POWER (1) -------- (None) > --- PROPULSION (4) --- (None) > --- UTILITY (2) ------ Small Storage Unit Large Storage Unit > --- WEAPON (2) ------- (None) > --- INVENTORY (15) --- Light Ion Engine Aluminum Leg Aluminum Leg Aluminum Leg Aluminum Leg Aluminum Leg Aluminum Leg Aluminum Leg Aluminum Leg Aluminum Leg Aluminum Leg Improved Heat Sink Terrain Scanner Peak State ------------ > --- POWER ------------ (None) > --- PROPULSION ------- Wheel Wheel Compact Wheel Compact Wheel > --- UTILITY ---------- Improved Heat Sink Large Storage Unit > --- WEAPON ----------- EM Pulse Gun Medium Laser > --- INVENTORY -------- Ion Engine Light Ion Engine Aluminum Leg Aluminum Leg Aluminum Leg Aluminum Leg Aluminum Leg Aluminum Leg Small Storage Unit Terrain Scanner Small Laser [Rating: 11] Favorites ----------- Power Light Ion Engine Engine Light Ion Engine Propulsion Compact Wheel Wheel Compact Wheel Utility Small Storage Unit Device Improved Terrain Scanner Storage Small Storage Unit Weapon Small Laser Energy Gun Small Laser Build | -11 -10 -9 ------- Run | Yrd Mat Mat Slots Evolved 2 | . . 2 Power . | . . . Propulsion 2 | . . 2 Utility . | . . . Weapon . | . . . Parts Attached 16 | 6 3 7 Power 2 | 1 . 1 Engine 2 | 1 . 1 Core . | . . . Reactor . | . . . Propulsion 4 | 2 . 2 Treads . | . . . Leg . | . . . Wheel 4 | 2 . 2 Hover . | . . . Flight . | . . . Utility 4 | 1 2 1 Device 2 | . 1 1 Storage 2 | 1 1 . Processor . | . . . Hackware . | . . . Protection . | . . . Artifact . | . . . Weapon 6 | 2 1 3 Energy Gun 6 | 2 1 3 Energy Cannon . | . . . Ballistic Gun . | . . . Ballistic Cannon . | . . . Launcher . | . . . Special Weapon . | . . . Impact Weapon . | . . . Slashing Weapon . | . . . Piercing Weapon . | . . . Special Melee Weapon . | . . . Unidentified Prototypes . | . . . Parts Lost 11 | . 2 9 Power 2 | . 1 1 Propulsion 4 | . . 4 Utility 1 | . 1 . Weapon 4 | . . 4 Highest Loss Streak 7 | . 2 7 To Critical Strikes . | . . . Average Backups 9 | 4 10 11 Power 1 | 1 2 1 Propulsion 5 | 2 5 7 Utility 1 | . 1 2 Weapon . | . . . Tool/Special . | . . . Unused Backups 14 | . . 14 Power 1 | . . 1 Propulsion 11 | . . 11 Utility 1 | . . 1 Weapon 1 | . . 1 Tool/Special . | . . . Average Slot Usage (%) 77 | . 94 57 Engine 7 | . 11 3 Wheel 23 | . 28 19 Device 6 | . 11 . Storage 17 | . 14 21 Energy Gun 20 | . 28 13 Peak Build Rating 11 | 7 10 11 Average Rating 7 | 4 8 6 On Entrance 4 | . 7 6 Naked Turns . | . . . Heaviest Build 34 | 11 27 34 Greatest Support 52 | 32 32 52 Greatest Overweight (x) 8 | . . 8 Average Overweight (x) . | . . 1 Largest Inventory Capacity 15 | 8 15 15 Average Capacity 11 | 7 11 15 Most Carried 15 | 8 14 15 Average Carried 9 | 4 10 11 Final Capacity 15 | 8 15 15 Final Carried 14 | 8 14 13 Class Distribution -------------------- 100% | Mutant Dominant Class ---------------- Mutant | -10/Materials Mutant | -9/Materials Resources | -11 -10 -9 ----------- Run | Yrd Mat Mat Matter Collected 318 | 260 15 43 Remotely . | . . . Salvage Created 503 | 161 19 323 Parts 38 | 13 2 23 Haulers Intercepted . | . . . Recyclers Shooed . | . . . Parts Field Recycled . | . . . Retrieved Matter . | . . . Parts Self-Destructed . | . . . Prevented . | . . . Kills | -11 -10 -9 ------- Run | Yrd Mat Mat Combat Hostiles Destroyed 10 | . 1 9 Guns 10 | . 1 9 Classes Destroyed 6 | 2 1 3 Worker 1 | . . 1 Tunneler 4 | 4 . . Recycler 1 | 1 . . Swarmer 4 | . 1 3 Grunt 5 | . . 5 Sentry 1 | . . 1 Best Kill Streak 6 | 5 1 6 Combat Bots Only 6 | . 1 6 Max Kills in Single Turn 1 | 1 1 1 Gunslinging . | . . . Exploded . | . . . Melee . | . . . Uniques/NPCs Destroyed . | . . . Combat | -11 -10 -9 -------- Run | Yrd Mat Mat Hostile Shots Fired 138 | . 51 87 Missed 33 | . 17 16 Hits 105 | . 34 71 Melee 11 | . . 11 Projectile 94 | . 34 60 Critical Strikes 3 | . . 3 Damage Taken 1363 | . 275 1088 Core 475 | . 69 406 Absorbed by Shields . | . . . Core Remaining (%) 86 | 100 72 . Volleys Fired 39 | 6 5 28 Largest 2 | 2 2 2 Hottest 105 | 90 90 105 Shots Fired 59 | 12 10 37 Gun 59 | 12 10 37 Cannon . | . . . Launcher . | . . . Special . | . . . Kinetic . | . . . Thermal 48 | 12 5 31 Explosive . | . . . Electromagnetic 11 | . 5 6 Robot Hit Streak 17 | 3 2 17 Robot Miss Streak 7 | 2 6 7 Penetration Max . | . . . Secondary Targets 1 | . . 1 Max Gunslinging Chain 1 | . . 1 Shots Hit Robots 41 | 7 2 32 Core Hits 24 | 6 1 17 Critical Kills . | . . . Critical Parts Destroyed . | . . . Critical Strikes . | . . . Melee Attacks . | . . . Impact . | . . . Slashing . | . . . Piercing . | . . . Sneak Attacks . | . . . Combat Hostiles . | . . . Follow-up Attacks . | . . . Damage Inflicted 548 | 84 45 419 Guns 527 | 84 35 408 Cannons . | . . . Explosions . | . . . Melee . | . . . Ramming 21 | . 10 11 Kinetic . | . . . Thermal 474 | 84 12 378 Explosive . | . . . Electromagnetic 53 | . 23 30 Impact . | . . . Slashing . | . . . Piercing . | . . . Highest Corruption 2 | . . 2 Average Corruption 2 | . . 2 Corruption Purged . | . . . Corruption Blocked . | . . . Overload Shots . | . . . Overflow Damage . | . . . Projectiles . | . . . Explosions . | . . . Melee . | . . . Knockbacks . | . . . Impact . | . . . Kinetic . | . . . Secondary . | . . . Self-Inflicted Damage 10 | . 5 5 Shots . | . . . Rammed 5 | . 3 2 Targets Rammed 5 | . 3 2 Kicked . | . . . Crushed . | . . . Highest Temperature 358 | 180 81 358 Average Temperature 108 | 93 39 135 Received Heat Transfer 327 | . 12 315 Effects 1 | . . 1 Energy Bleed 1 | . . 1 Siege Activations . | . . . Martial Activations . | . . . Shielding Activations . | . . . Robots Disrupted . | . . . Combat Hostiles . | . . . Robots Corrupted . | . . . Combat Hostiles . | . . . Parts Fried . | . . . Impact Corruptions . | . . . Robots Melted . | . . . Combat Hostiles . | . . . Parts Melted 1 | . . 1 Heat Transferred 1129 | 223 37 869 Parts Sabotaged . | . . . Parts Stolen . | . . . Parts Stripped . | . . . Power Chain Reactions . | . . . Alert | -11 -10 -9 ------- Run | Yrd Mat Mat Maximum Alert Level . | . . . Low Security (%) 100 | 100 100 100 Level 1 . | . . . Level 2 . | . . . Level 3 . | . . . Level 4 . | . . . Level 5 . | . . . High Security . | . . . Max Security . | . . . Peak Influence 155 | 25 45 155 Initial 5 | . 3 5 Average 34 | 5 4 84 Influence Increases 300 | 25 45 230 Destroy 0b10 Robot/C 200 | . 20 180 Destroy 0b10 Robot/NC 30 | 25 . 5 Destroy Leader 40 | . 10 30 Disable Machine 15 | . . 15 Lose Combat Pursuer 15 | . 15 . Influence Decreases 200 | 20 35 145 Entered New Map 12 | . 2 10 Time Decay 118 | 20 23 75 Lost Part 70 | . 10 60 Squads Dispatched 2 | . 2 . Investigation . | . . . Extermination . | . . . Reinforcement 2 | . 2 . Assault . | . . . Garrison . | . . . Intercept . | . . . Searches Triggered . | . . . Construction Impeded . | . . . Haulers Reinforced . | . . . Active Scanning Responses . | . . . Cargo Convoy Interrupts . | . . . Stealth | -11 -10 -9 --------- Run | Yrd Mat Mat Distress Signals 2 | . 2 . Communications Jammed . | . . . Distress Signals . | . . . Times Spotted 26 | . 14 12 Peak Tracking Total 8 | . 5 8 Tactical Retreats 1 | . 1 . Traps | -11 -10 -9 ------- Run | Yrd Mat Mat Traps Triggered . | . . . Indirectly . | . . . Trap Hack Attempts . | . . . Triggered . | . . . Disarmed . | . . . Reprogrammed . | . . . Reused . | . . . Traps Extracted . | . . . Installed . | . . . Triggered . | . . . Machines | -11 -10 -9 ---------- Run | Yrd Mat Mat Machines Disabled 1 | . . 1 Max in Single Turn 1 | . . 1 Machines Repaired . | . . . Machines Dismantled . | . . . Machines Sabotaged . | . . . Overloaded Fab Kills . | . . . Hacking | -11 -10 -9 --------- Run | Yrd Mat Mat Machines Accessed . | . . . Terminals . | . . . Fabricators . | . . . Repair Stations . | . . . Recycling Units . | . . . Scanalyzers . | . . . Garrison Access . | . . . Total Hacks . | . . . Successful . | . . . Failed . | . . . Catastrophic . | . . . Database Lockouts . | . . . Manual . | . . . Terminals . | . . . Fabricators . | . . . Repair Stations . | . . . Recycling Units . | . . . Scanalyzers . | . . . Garrison Access . | . . . Terminal Hacks . | . . . Fabricator Hacks . | . . . Repair Station Hacks . | . . . Recycling Unit Hacks . | . . . Scanalyzer . | . . . Garrison Access Hacks . | . . . Unauthorized Hacks . | . . . Terminals . | . . . Fabricators . | . . . Repair Stations . | . . . Recycling Units . | . . . Scanalyzers . | . . . Garrison Access . | . . . Data Cores Recovered . | . . . Used . | . . . Hacking Detections . | . . . Full Trace Events . | . . . Feedback Events . | . . . Feedback Blocked . | . . . Robot Schematics Acquired . | . . . Robots Built . | . . . Authchips . | . . . Time . | . . . Total Robot Build Rating . | . . . Part Schematics Acquired . | . . . Parts Built . | . . . Authchips . | . . . Time . | . . . Total Part Build Rating . | . . . Parts Repaired . | . . . Time . | . . . Parts Recycled . | . . . Recycled Matter . | . . . Retrieved Matter . | . . . Retrieved Components . | . . . Parts Scanalyzed . | . . . Part Schematics Acquired . | . . . Parts Damaged . | . . . Bothacking | -11 -10 -9 ------------ Run | Yrd Mat Mat Used RIF Installer . | . . . Robots Hacked . | . . . Non-combat . | . . . Combat . | . . . Robot Hacks Applied . | . . . Relay Couplers Released . | . . . Fabnet Peak Effective % . | . . . Robots Rewired . | . . . Allies Hacked . | . . . Hacks Repelled . | . . . Allies | -11 -10 -9 -------- Run | Yrd Mat Mat Total Allies . | . . . Largest Group . | . . . Highest-Rated Group . | . . . Highest-Rated Ally . | . . . Total Orders . | . . . Ally Attacks . | . . . Total Damage . | . . . Kills . | . . . Allies Corrupted . | . . . Allies Melted . | . . . Intel | -11 -10 -9 ------- Run | Yrd Mat Mat Active Infowar (turns) 120 | . 120 . Terrain 120 | . 120 . Robot Analysis Total . | . . . Derelict Logs Recovered . | . . . Drone Launches . | . . . Drone Recoveries . | . . . Exploration | -11 -10 -9 ------------- Run | Yrd Mat Mat Turns Passed 540 | 118 224 198 Spaces Moved 367 | 89 194 84 Core 23 | 20 . 3 Treads . | . . . Legs . | . . . Wheels 344 | 69 194 81 Hover . | . . . Flight . | . . . Fastest Speed 50 | 50 100 86 Average Speed 100 | 88 100 113 Slowest Speed 450 | 100 100 450 Overloaded Moves . | . . . Propulsion Burnouts . | . . . Robots Hopped . | . . . Potential Cave-ins . | . . . Cave-ins Triggered . | . . . Exploration Rate (%) 16 | 5 35 9 Regions Visited 2 Branch Regions . Pre-discovered Areas . | . . . Known Exits Taken . | . . . Unknown Exits Taken 2 | 1 1 . Scrap Searched . | . . . Spaces Dug . | . . . Terrain Destroyed . | . . . Melee . | . . . Projectile . | . . . AOE . | . . . Terrain Rammed . | . . . Walls Destroyed . | . . . Machines Disabled . | . . . Actions | -11 -10 -9 --------- Run | Yrd Mat Mat Total 478 | 116 213 149 Wait 15 | . . 15 Move 365 | 88 193 84 Hop . | . . . Pick Up 32 | 15 8 9 Fast Attach . | . . . Attach 15 | 6 1 8 Detach . | . . . Swap 3 | . 2 1 Drop 4 | 1 1 2 Fire 39 | 6 5 28 Melee . | . . . Ram 5 | . 3 2 Kick . | . . . Crush . | . . . Escape Stasis . | . . . Rewire . | . . . Trap . | . . . Miscellaneous . | . . . Route ------- -11/Scrapyard -10/Materials (discovered 2 exits: [*Mat] / [*Min]) -9/Materials History --------- Turn | Location | Event 15 | -11/Scrapyard | Discovered new exit (range 16) 119 | -11/Scrapyard | Entered Materials 120 | -10/Materials | Met a group of wandering Federalists 177 | -10/Materials | Discovered new exit (range 13) 302 | -10/Materials | Build established: Mutant 332 | -10/Materials | Discovered new exit (range 11) 343 | -10/Materials | Entered another Materials area 343 | -9/Materials | Evolved 2 slots: Propulsion x2 477 | -9/Materials | Lost 7 parts (1p3n3w) 507 | -9/Materials | Core integrity fell below 50% 535 | -9/Materials | Core integrity fell below 20% 541 | -9/Materials | Destroyed by L-31 Rogue with Katana Last Messages --------------- payload. 00494_ L-31 Rogue unfolds itself. 00494_ G-34 Mercenary unfolds itself. 00502_ K-01 Serf collects debris. 00506_ Slammed into K-01 Serf. 00506_ K-01 Serf destroyed. 00508_ Beam Rifle severed. 00511_ Particle Gun destroyed. 00516_ Wheel destroyed. 00521_ R-06 Scavenger collects Flight Unit. 00523_ Sml. Laser severed. 00524_ Slammed into L-31 Rogue. 00524_ Destabilizing: System corrupted (+2). 00524_ R-06 Scavenger collects Sml. Laser. 00527_ R-06 Scavenger collects Wheel. 00534_ K-01 Serf collects debris. 00536_ M-13 Machinist repairs L-31 Rogue. 00538_ K-01 Serf collects debris. 00538_ M-13 Machinist repairs L-31 Rogue Imp. Ion Engine. Map ----- +----------------------------------------------------+ | ??????????????????????????????????? | | ??????????????????????????????????? | | ??????????????????????????????????? | | ??????????????????????????????????? | | ??????????????????????????????????? | | ??????????????????????????????????? | | ??????????????????????????????????? | | ??????????????????????????????????? | | ??????????????????????????????????? | | ??????????????????????????????????? | | ??????????????????????????????????? | | ??????????????????????????????????? | | ??????????????????????????????????? | | ??????????????????????????????????? | | ??????????????????????????????????? | | ?##????????????????? ????????????? | | ## ######?????????? #????????????? | | # #????????? #????????????? | | # " #???????? k#????????????? | | #""" ######### %###??????????? | | #"" [# ?????????? | | #""" #% ?????????? | | # "" %%/mgg r ! ????????? | | #"""[ =# ????????? | | #""" ! ##l ????????? | | #"""=% ##@ ????????? | | #% ! ## """ """ ""??????????? | | #%% = ## """ """ "???????????? | | ########## """ """ """?????????? | | ?????????# ????????? | | ?????????# ????????? | | ?????????# ###/##???????????? | | ?????????# ##????????????????? | | ?????????# #?????????????????? | | ?????????# #?????????????????? | | ?????????# #?????????????????? | | ?????????# #?????????????????? | | ?????????# #?????????????????? | | ?????????# #?????????????????? | | ?????????# #?????????????????? | | ?????????# #?????????????????? | | ?????????# #?????????????????? | | ?????????# #?????????????????? | | ?????????# #?????????????????? | | ?????????# #?????????????????? | | ?????????# #?????????????????? | | ?????#####+## #?????????????????? | | ?????# # #?????????????????? | | ?????# # #?????????????????? | | ?????# "" + +?????????????????? | +----------------------------------------------------+ Best States ------------- Heat Dissipation 28 Energy Generation 10 Energy Capacity 250 Matter Stores 300 Matter Capacity 300 Sight Range 16 Terrain Scan Range 16 Terrain Scan Density 10 Evasion (%) 50 Item Schematics ----------------- None Robot Schematics ------------------ None Fabricated ------------ Nothing Repaired ---------- Nothing Alien Tech Used ----------------- None Achievements -------------- None Challenges ------------ None Game ------ Seed GravitonAbsorptionActivator Manual? 0 Play Time 00:11:17 Cumulative 16.6 hours Start 2025.07.05 @ 15:47:52 End 2025.07.05 @ 16:17:41 Sessions 1 Manual Loads 0 Difficulty Rogue Special Mode None Game No. 20 Rogue 20 Adventurer 0 Explorer 0 Win Type - Total 0 Types 0/0/0/0/0/0/0/0/0/0 Lore% 12 Gallery% 22 Achievement% 24 Wizard Run 0 Options --------- Layout 1 ASCII 0 Keyboard 0 Movement Numpad Keybinds 0 Fullscreen 2 Font 24/Smallcaps Map View 50x35 Zoom Use 0% Tactical HUD 1 Map Filters NONE Filters NONE Steam 1 RUN: 0ada41a7-b8ff-40d2-b9a9-16644139f3c4